{"text_format":"2","workbook":"xlsx","n_sheets":1,"sheets":["TANFEL_részidős_levelező"],"not_rendered":{"charts":0,"images":0,"macros":0,"external_links":0,"defined_names":0,"comments":0,"pivot_tables":0},"unopened":[],"bounds":{"document_bytes":16777216,"sheet_cells":100000,"run_cost":"one","rows_first":2000,"rows_last":500,"rows_between":2000,"halvings":0,"cell_chars":16384,"cell_head_chars":4096},"cells_cut":0,"cells_raw":0,"read":"whole","date_system":"1900"}

{"sheet":"TANFEL_részidős_levelező","index":0,"n_rows":35,"n_cols":30,"rows_kept":35,"cut":false,"hidden":false,"merged":[[0,24,0,26],[0,27,0,29],[0,6,0,8],[0,12,0,14],[0,21,0,23],[0,18,0,20],[0,9,0,11]]}
[{"$nulls":6},"2D_TR1",null,null,"2T_TR2",null,null,"4T_TR3",null,null,null,"3T_TR3 2023",null,"4P_TR4",null,null,"4B_TR5",null,null,"2B_TR5 2 félév '23",null,null,"3B_TR5 3 félév '23"]
["Mérföldkő/\nTárgycsoport kódja","Tárgykód","Tárgycsoport/Tárgy neve","Tárgy típusa","Tárgy-követelmény","Tárgyfelvétel típusa","Félévi óraszám","Kredit","Félév","Félévi óraszám","Kredit","Félév","Félévi óraszám","Kredit","Félév","Félévi óraszám","Kredit","Félév","Félévi óraszám","Kredit","Félév","Félévi óraszám","Kredit","Félév","Félévi óraszám","Kredit","Félév","Félévi óraszám","Kredit","Félév"]
[null,null,"Tanári felkészítés részidős tanári_L_2022"]
[null,"TR1 - 2D\nTANFEL2D_L_2022","Tanári felkészítés 2 félév: nem tanári mesterszakot követő egyszakos tanári mesterképzésL (A)",{"$nulls":4},{"$f":"H9+H12","v":28}]
[null,"TR2 - 2T\nTANFEL2T_L_2022","Tanári felkészítés 2 félév: Mesterfokozatú tanári szakképzettség megszerzésére irányuló képzés (C)",{"$nulls":7},{"$f":"K9+K12","v":5}]
[null,"TR3 - 4T\n\nTANFEL4T_L_2022\nTANFEL3T_L_2023","Tanári felkészítés 4 félév: Tanári szakképzettség birtokában újabb (más szakos) tanári oklevelet adó tanárképzés_N (D) \n3 féléves, 0 PedPszich!!!",{"$nulls":10},{"$f":"N9+N12","v":6}]
[null,"TR4 - 4P\nTANFEL4P_L_2022","Tanári felkészítés 4 félév: Újabb oklevelet adó tanárképzés tanítói szakképzettséggel_L (E)\n",{"$nulls":13},0,null,null,0]
[null,"TR5 - 4B\nTANFEL4B_L_2022\nTANFEL2B_L_2023\nTANFEL3B_L_2023","Tanári felkészítés 4 félév:  Alapszakos képzettség birtokában egyszakos részidős képzés_N (F)\n2 és 3 féléves, 3 kredit SZV",{"$nulls":19},{"$f":"W9+W12","v":34},null,null,{"$f":"25+3","v":28},null,null,{"$f":"25+3","v":28}]
["TCS-RKL-PED-01",null,"Pszichológia",{"$nulls":4},{"$f":"SUM(H10:H11)","v":5},null,null,0,null,null,0,null,null,0,null,null,0,null,null,5,null,null,5,null,null,5]
[null,"RKL-PED-0101","Fejlődés-és szociálpszichológiai alapismeretek","Előadás","Kollokvium","Kötelező",10,3,1,{"$nulls":12},10,3,1,2,3,1,2,3,1]
[null,"RKL-PED-0102","Az iskolai nevelés pszichológiai problémái","Gyakorlat","Gyakorlati jegy","Kötelező",10,2,1,{"$nulls":12},10,2,1,2,2,1,2,2,1]
["TCS-RKL-PED-02",null,"Pedagógia ",{"$nulls":4},{"$f":"SUM(H13:H27)-H15","v":23},null,null,{"$f":"SUM(K13:K25)-K15-K17","v":5},null,null,{"$f":"SUM(N13:N25)-N15-N17","v":6},null,null,{"$f":"SUM(Q13:Q25)-Q15-Q17","v":0},null,null,{"$f":"SUM(T13:T25)-T15-T17","v":0},null,null,{"$f":"SUM(W13:W27)-W15","v":29},null,null,{"$f":"SUM(Z13:Z28)-Z14","v":23},null,null,{"$f":"SUM(AC13:AC28)-AC14","v":23}]
[null,"RKL-PED-0201","Neveléspszichológia és nevelésszociológia","Előadás","Kollokvium","Kötelező",10,3,1,10,3,1,{"$nulls":9},10,3,1,2,3,1,2,3,1]
[null,"RKL-PED-0202a","Méltányosság és esélyegyenlőség az oktatásban","Szeminárium","Gyakorlati jegy","Kötelezően választható",10,2,1,null,null,null,10,2,1,null,0,{"$nulls":4},10,2,2,2,2,2,2,2,2]
[null,"RKL-PED-0202b","Sajátos nevelési igények, tehetséggondozás","Szeminárium","Gyakorlati jegy","Kötelezően választható",10,2,1,null,null,null,10,2,1,null,0,{"$nulls":4},10,2,2,2,2,2,2,2,2]
[null,"RKL-PED-0203a","Szabadon választható 1: Gyógypedagógia","Gyakorlat","Gyakorlati jegy","Kötelezően választható",{"$nulls":6},10,2,2,null,0]
[null,"RKL-PED-0203b","Szabadon választható 2: Drámapedagógia","Gyakorlat","Gyakorlati jegy","Kötelezően választható",{"$nulls":6},10,2,3,null,0]
[null,"RKL-PED-0204","Tanuláselmélet és oktatásmódszertan","Előadás","Kollokvium","Kötelező",10,3,1,{"$nulls":12},10,3,3,2,3,2,2,3,2]
[null,"RKL-PED-0205","Innovatív módszerek az oktatásban SZABVÁL","Gyakorlat","Gyakorlati jegy","Kötelező\nSzabadon választható",10,3,2,{"$nulls":12},10,3,4,2,3,2,2,3,2]
[null,"RKL-PED-0206","Technológiai eszközökkel támogatott oktatás","Gyakorlat","Gyakorlati jegy","Kötelező",10,2,1,10,2,1,10,2,2,null,0,{"$nulls":4},10,2,2,2,2,2,2,2,2]
[null,"RKL-PED-0207","Készség- és képességfejlesztés","Szeminárium","Gyakorlati jegy","Kötelező",10,2,1,{"$nulls":12},10,2,2,2,2,2,2,2,2]
[null,"RKL-PED-0208","Tantervfejlesztés                                                 ","Szeminárium","Gyakorlati jegy","Kötelező",10,2,1,{"$nulls":12},10,2,3,2,2,1,2,2,1]
[null,"RKL-PED-0209","Pedagógiai értékelés","Szeminárium","Gyakorlati jegy","Kötelező",10,2,1,{"$nulls":12},10,2,3,2,2,1,2,2,1]
[null,"RKL-PED-0210","A pedagógiai kutatás módszerei és a tudományos eredmények iskolai alkalmazása","Szeminárium","Gyakorlati jegy","Kötelező",10,2,1,{"$nulls":12},10,2,2,2,2,1,2,2,1]
[null,"RKL-PED-0211","ÖSZGY kísérő pedagógiai szeminárium","Szeminárium","Gyakorlati jegy","Kötelező",10,2,2,{"$nulls":12},10,2,4,2,2,2,2,2,3]
[null,"RKN-PED-0212(-0)","Pályaismeret és pályaszocializáció A","Gyakorlat","Gyakorlati jegy","Kötelező",10,0,1,{"$nulls":12},10,4,1]
[null,"RKN-PED-0213","Pályaismeret és pályaszocializáció B","Gyakorlat","Gyakorlati jegy","Kötelező",{"$nulls":15},10,2,1]
["MK-PP",null,"Portfóliókészítés",{"$nulls":4},2,null,null,2,null,null,2,null,null,2,null,null,2,null,null,2]
[null,"RKL-PP","Portfóliókészítés","Gyakorlat","Gyakorlati jegy","Kötelező",10,2,2,10,2,2,10,2,4,null,2,null,10,2,4,10,2,4,null,2,null,null,2]
[{"$nulls":15},2,null,3,{"$nulls":6},2,2,2,2,2,3]
[null,null,"Szaktárgyi tanítási gyakorlat",{"$nulls":4},2,null,null,2,null,null,2,null,null,2,null,null,2,null,null,12]
[null,null,"Összefüggő egyéni iskolai gyakorlat",{"$nulls":4},18,null,null,0,null,null,0,null,null,0,null,null,18,null,null,18,null,null,12,null,null,12]
[null,null,"Tanítási gyakorlat",{"$nulls":4},{"$f":"H31+H32","v":20},null,null,{"$f":"K31+K32","v":2},null,null,{"$f":"N31+N32","v":2},null,null,{"$f":"Q31+Q32","v":2},null,null,{"$f":"T31+T32","v":20},null,null,{"$f":"W31+W32","v":30},null,null,18,null,null,18]
[]
[null,null,"Összesen:",{"$nulls":4},{"$f":"H33+H4+H28","v":50},null,null,{"$f":"K33+K5+K28","v":9},null,null,{"$f":"N33+N12+N28","v":10},null,null,{"$f":"Q7+Q28+Q31+Q32","v":4},null,null,{"$f":"T33+T7+T28","v":22},null,null,{"$f":"W33+W8+W28","v":66},null,null,{"$f":"Z32+Z33+Z29+Z8","v":60},null,null,{"$f":"AC32+AC33+AC29+AC8","v":60}]